bitfinex/quotes_SOLUSD_20250922
["timestamp","ask_amount","ask_price","bid_price","bid_amount"]
[1758544735184,0.1,222.36,222.33,13.59559401]
[1758544735378,0.1,222.36,222.35,4.24426116]
[1758544735591,0.69,222.44,222.36,13.59559401]
[1758544735775,0.69,222.44,222.43,2.12213058]
[1758544736476,3.03066279,222.48,222.43,2.12213058]
[1758544736668,0.69,222.47,222.46,2.12213058]
[1758544737195,0.69,222.47,222.42,34.82]
[1758544737390,0.65,222.46,222.41,2.12213058]
[1758544737600,0.65,222.45,222.41,2.12213058]
[1758544737800,7.52547468,222.48,222.41,2.12213058]
[1758544738111,0.65,222.44,222.41,2.12213058]
[1758544738407,0.65,222.43,222.41,2.12213058]
[1758544738799,0.65,222.42,222.41,2.12213058]
[1758544740075,0.65,222.42,222.39,2.12213058]
[1758544740301,0.65,222.41,222.39,2.12213058]
[1758544740498,0.65,222.4,222.39,2.12213058]
[1758544741308,0.65,222.4,222.38,2.12213058]
[1758544741496,0.65,222.39,222.38,2.12213058]
[1758544741795,0.65,222.39,222.37,80.6]
[1758544742003,0.65,222.39,222.36,82.72213058]
[1758544742378,0.65,222.39,222.36,87.21933677]
[1758544744207,0.65,222.38,222.36,82.72213058]
[1758544744402,30.49585464,222.43,222.36,82.72213058]
[1758544744594,30.49585464,222.43,222.32,80.6]
[1758544744595,0.65,222.37,222.32,80.6]
[1758544744791,0.65,222.37,222.32,2.12213058]
[1758544745109,0.65,222.36,222.32,2.12213058]
[1758544745407,0.65,222.35,222.32,2.12213058]
[1758544745580,0.65,222.34,222.29,80.6]
[1758544745788,0.65,222.33,222.3,36.94213058]
[1758544746500,0.65,222.33,222.31,2.12213058]
[1758544746704,27.41207676,222.49,222.32,0.69]
[1758544746907,0.65,222.36,222.33,2.12213058]
[1758544747106,0.65,222.35,222.33,2.12213058]
[1758544747309,0.65,222.34,222.31,2.12213058]
[1758544747492,2.12213058,222.38,222.31,2.12213058]
[1758544747805,0.65,222.37,222.31,2.12213058]
[1758544748008,0.65,222.36,222.31,2.12213058]
[1758544748306,0.65,222.35,222.29,2.12213058]
[1758544748512,0.65,222.34,222.29,2.12213058]
[1758544748714,26.65,222.33,222.29,1.35810169]
[1758544748916,0.65,222.32,222.29,1.35810169]
[1758544749407,0.65,222.31,222.29,1.35810169]
[1758544751793,0.65,222.35,222.3,0.69]
[1758544751984,26.0,222.37,222.34,1.35810169]
[1758544752623,0.65,222.36,222.34,1.35810169]
[1758544752918,0.65,222.35,222.33,1.35810169]
[1758544753209,0.65,222.34,222.33,1.35810169]
[1758544753787,0.65,222.34,222.31,1.35810169]
[1758544754123,26.0,222.37,222.29,80.6]
[1758544754124,0.65,222.33,222.29,80.6]
[1758544754335,0.65,222.32,222.28,1.35810169]
[1758544754620,4.37923692,222.36,222.26,120.09622191]
[1758544754621,0.67,222.31,222.26,120.09622191]
[1758544754911,0.67,222.31,222.28,1.35810169]
[1758544756721,0.67,222.33,222.29,1.35810169]
[1758544756889,26.67,222.33,222.29,1.35810169]
[1758544757094,0.67,222.32,222.29,1.35810169]
[1758544757990,26.67,222.32,222.29,1.35810169]
[1758544758391,0.67,222.36,222.31,1.35810169]
[1758544758614,0.67,222.35,222.28,0.7]
[1758544758799,0.67,222.35,222.32,1.35810169]
[1758544759112,0.67,222.34,222.32,1.35810169]
[1758544759318,0.67,222.34,222.3,1.35810169]
[1758544759992,26.67,222.34,222.3,1.35810169]
[1758544760192,26.67,222.34,222.3,5.85649294]
[1758544760820,26.67,222.34,222.3,1.35810169]
[1758544761817,0.67,222.33,222.3,1.35810169]
[1758544762215,0.67,222.33,222.29,4.4985521]
[1758544763500,26.0,222.34,222.3,0.7]
[1758544764315,26.67,222.34,222.3,0.7]
[1758544764530,0.67,222.33,222.28,80.6]
[1758544764826,0.67,222.32,222.28,80.6]
[1758544765221,0.67,222.32,222.28,81.3]
[1758544765410,0.67,222.32,222.28,85.79880427]
[1758544766030,26.67,222.34,222.28,85.79880427]
[1758544766535,26.67,222.34,222.28,80.6]
[1758544766536,0.67,222.33,222.28,80.6]
[1758544766703,0.67,222.32,222.26,82.11510169]
[1758544766904,26.67,222.32,222.26,82.11510169]
[1758544767105,0.72,222.31,222.26,82.11510169]
[1758544767304,0.72,222.3,222.26,87.28430754]
[1758544767511,0.72,222.3,222.26,82.78510169]
[1758544768306,0.72,222.3,222.26,81.427]
[1758544769531,1.35810169,222.32,222.26,85.92621053]
[1758544769737,2.07810169,222.32,222.27,0.67]
[1758544770031,0.72,222.31,222.27,0.67]
[1758544770421,27.35810169,222.33,222.27,0.67]
[1758544770422,28.07810169,222.33,222.27,5.16890079]
[1758544770725,0.72,222.32,222.26,86.61430853]
[1758544771135,0.72,222.32,222.26,87.28430853]
[1758544771519,27.35810169,222.33,222.27,0.67]
[1758544771732,0.72,222.34,222.27,2.02810169]
[1758544772031,0.72,222.34,222.28,0.67]
[1758544772733,1.35810169,222.33,222.28,81.27]
[1758544772933,0.72,222.32,222.28,81.27]
[1758544773137,0.72,222.32,222.28,85.76878112]
[1758544773431,1.35810169,222.33,222.28,85.76878112]
[1758544773637,0.72,222.32,222.28,85.76878112]
[1758544774321,0.72,222.32,222.28,81.27]
[1758544774522,1.35810169,222.31,222.28,80.6]
[1758544775231,0.72,222.3,222.28,80.6]
[1758544775429,1.35810169,222.31,222.28,80.6]
[1758544775812,1.35810169,222.29,222.28,80.6]
[1758544776132,1.35810169,222.29,222.26,0.157]
[1758544777014,0.72,222.28,222.26,0.157]
[1758544777211,2.07810169,222.29,222.26,0.157]
[1758544777415,1.35810169,222.27,222.26,0.157]
[1758544777611,1.35810169,222.27,222.26,0.827]
[1758544778233,1.35810169,222.29,222.26,0.827]
[1758544779322,1.35810169,222.29,222.26,0.157]
[1758544780143,2.07810169,222.29,222.26,0.157]
[1758544780348,1.35810169,222.27,222.26,0.157]
[1758544781528,0.72,222.28,222.26,0.157]
[1758544781734,1.35810169,222.27,222.26,0.157]
[1758544781931,0.72,222.28,222.26,0.157]
[1758544782439,0.72,222.33,222.27,0.67]
[1758544782744,1.35810169,222.32,222.27,0.67]
[1758544782943,0.72,222.31,222.27,0.67]
[1758544783172,0.72,222.3,222.26,0.157]
[1758544783450,0.72,222.29,222.26,0.157]
[1758544783651,26.72,222.29,222.26,0.157]
[1758544783842,0.72,222.28,222.26,0.157]
[1758544784357,26.0,222.29,222.26,0.157]
[1758544784549,26.72,222.29,222.26,0.157]
[1758544785143,0.72,222.34,222.26,0.157]
[1758544785455,34.82,222.33,222.28,4.4988303]
[1758544785642,34.82,222.33,222.29,0.67]
[1758544785845,35.54,222.33,222.29,0.67]
[1758544786247,34.82,222.33,222.28,4.4988303]
[1758544786444,0.72,222.32,222.27,6.52711506]
[1758544787658,0.72,222.32,222.28,5.16878839]
[1758544789136,0.72,222.32,222.28,0.67]
[1758544789341,26.72,222.31,222.26,80.757]
[1758544789535,0.72,222.3,222.26,80.757]
[1758544789736,0.72,222.3,222.26,81.427]
[1758544789963,26.0,222.31,222.26,85.25620516]
[1758544790149,26.0,222.31,222.27,0.67]
[1758544790345,26.0,222.31,222.26,85.25620516]
[1758544790346,26.72,222.31,222.26,85.25620516]
[1758544790553,0.72,222.3,222.27,80.6]
[1758544791147,0.72,222.29,222.27,80.6]
[1758544791348,0.72,222.29,222.26,0.157]
[1758544791785,1.35810169,222.27,222.26,0.157]
[1758544792072,65.93239423,222.27,222.26,0.157]
[1758544792241,31.11239423,222.27,222.26,0.157]
[1758544792641,3.03429254,222.27,222.26,5.32623513]
[1758544792869,3.03429254,222.3,222.26,5.32623513]
[1758544793037,1.1263963,222.29,222.27,0.67]
[1758544793242,4.39239423,222.32,222.26,4.65623513]
[1758544793442,1.1263963,222.31,222.26,4.65623513]
[1758544793666,1.1263963,222.3,222.26,4.65623513]
[1758544793857,1.1263963,222.29,222.27,0.67]
[1758544794058,1.1263963,222.28,222.27,5.1690327]
[1758544795064,1.12640808,222.28,222.27,5.1690327]
[1758544795743,1.12640808,222.28,222.27,4.4990327]
[1758544797266,1.12640808,222.28,222.26,4.65620075]
[1758544797566,1.82640808,222.27,222.26,0.157]
[1758544798170,1.12640808,222.27,222.26,0.157]
[1758544799256,1.12640808,222.27,222.26,0.807]
[1758544799642,1.12640808,222.27,222.26,6.66433682]
[1758544800067,1.12640808,222.27,222.26,5.30623513]
[1758544801450,1.12640808,222.27,222.26,20.25993083]
[1758544802471,3.03429254,222.32,222.27,13.59559401]
[1758544802675,1.12619388,222.31,222.28,34.82]
[1758544802871,1.12619388,222.3,222.29,0.65]
[1758544803954,1.12619388,222.3,222.29,6.5067296]
[1758544804177,0.7,222.37,222.29,17.75329939]
[1758544804371,1.12611862,222.36,222.33,1.35810169]
[1758544804561,1.12611862,222.35,222.33,1.35810169]
[1758544804869,1.12611862,222.34,222.33,1.35810169]
[1758544805273,1.12611862,222.34,222.33,2.00810169]
[1758544806070,1.12611862,222.34,222.33,6.50592024]
[1758544807762,3.03483258,222.42,222.34,13.59559401]
[1758544807963,29.73483258,222.44,222.4,1.35810169]
[1758544808158,3.03483258,222.43,222.4,5.85435872]
[1758544808356,26.0,222.44,222.4,5.85435872]
[1758544808676,3.03483258,222.43,222.38,4.49672658]
[1758544808972,0.7,222.42,222.38,2.11966046]
[1758544809183,0.7,222.41,222.38,2.11966046]
[1758544809405,0.7,222.4,222.38,2.11966046]
[1758544809558,0.7,222.39,222.38,2.11966046]
[1758544810301,0.7,222.42,222.38,6.61646772]
[1758544810587,29.03483258,222.44,222.41,2.11966046]
[1758544810760,26.0,222.44,222.43,2.11966046]
[1758544810962,29.02710506,222.44,222.43,2.11966046]
[1758544811163,3.02710506,222.44,222.43,2.11966046]
[1758544811664,3.72710506,222.44,222.39,0.65]
[1758544811977,3.72710506,222.44,222.43,2.11966046]
[1758544812180,3.02710506,222.44,222.43,2.11966046]
[1758544812980,26.7,222.45,222.43,2.11966046]
[1758544813569,26.7,222.45,222.41,4.49616492]
[1758544813862,26.7,222.45,222.44,2.11966046]
[1758544814269,26.0,222.45,222.44,2.11966046]
[1758544814882,3.02160326,222.45,222.44,2.11966046]
[1758544815183,0.66,222.45,222.44,2.11966046]
[1758544816383,0.66,222.45,222.36,0.66]
[1758544816680,34.8,222.44,222.39,2.11966046]
[1758544816915,3.68160326,222.43,222.39,2.11966046]
[1758544817061,3.68160326,222.43,222.31,0.66]
[1758544817062,26.0,222.41,222.31,0.66]
[1758544817269,0.66,222.4,222.37,2.11966046]
[1758544817476,0.66,222.39,222.37,2.11966046]
[1758544817671,0.66,222.38,222.37,2.11966046]
[1758544817875,26.0,222.41,222.37,2.11966046]
[1758544818065,0.66,222.38,222.3,0.66]
[1758544818264,35.46,222.38,222.35,2.11966046]
[1758544818484,0.66,222.37,222.35,2.11966046]
[1758544818669,0.66,222.36,222.35,2.11966046]
[1758544819062,0.66,222.36,222.34,2.11966046]
[1758544819463,0.66,222.35,222.34,2.11966046]
[1758544820484,0.66,222.37,222.34,2.11966046]
[1758544820701,0.66,222.36,222.34,2.11966046]
[1758544820909,0.66,222.35,222.29,4.49847856]
[1758544821112,0.66,222.34,222.31,2.11966046]
[1758544821400,34.8,222.38,222.29,4.49847856]
[1758544821401,0.66,222.36,222.33,2.11966046]
[1758544821580,0.66,222.35,222.34,2.11966046]
[1758544821785,0.66,222.35,222.33,2.11966046]
[1758544821985,0.66,222.35,222.3,2.11966046]
[1758544822894,0.66,222.35,222.3,2.77966046]
[1758544823293,0.66,222.34,222.3,2.11966046]
[1758544823497,0.66,222.33,222.28,2.11966046]
[1758544823885,0.66,222.33,222.28,2.77966046]
[1758544824888,0.66,222.33,222.29,4.49862791]
[1758544825591,26.66,222.35,222.3,2.11966046]
[1758544825798,0.66,222.34,222.3,2.11966046]
[1758544826707,0.66,222.33,222.3,2.11966046]
[1758544826897,34.8,222.35,222.3,2.11966046]
[1758544827086,0.66,222.34,222.3,2.11966046]
[1758544827287,0.66,222.33,222.29,2.11966046]
[1758544827593,0.66,222.32,222.29,2.11966046]
[1758544827795,0.66,222.31,222.26,0.157]
[1758544828313,0.66,222.31,222.26,0.817]
[1758544829611,0.66,222.31,222.27,2.11966046]
[1758544830609,26.0,222.32,222.27,2.11966046]
[1758544830810,0.66,222.31,222.27,2.11966046]
[1758544831009,26.0,222.32,222.27,2.77966046]
[1758544831191,26.0,222.32,222.27,2.11966046]
[1758544831397,0.66,222.31,222.27,2.11966046]
[1758544831695,0.66,222.3,222.27,2.11966046]
[1758544832214,26.0,222.32,222.26,4.65616145]
[1758544832516,26.66,222.32,222.26,4.65616145]
[1758544833097,26.0,222.32,222.27,0.66]
[1758544833294,26.66,222.32,222.27,0.66]
[1758544834203,0.66,222.31,222.27,0.66]
[1758544835218,0.66,222.31,222.28,4.4988303]
[1758544835516,0.66,222.35,222.29,2.77966046]
[1758544835812,61.46,222.36,222.3,2.77966046]
[1758544836010,63.57966046,222.36,222.3,0.66]
[1758544836217,37.57966046,222.36,222.3,0.66]
[1758544836396,63.57966046,222.36,222.3,0.66]
[1758544837015,30.915326,222.43,222.31,2.11966046]
[1758544837016,0.66,222.38,222.31,2.11966046]
[1758544837206,0.66,222.38,222.33,4.49781855]
[1758544837404,2.11966046,222.39,222.34,0.66]
[1758544837712,3.68216529,222.39,222.34,0.66]
[1758544838111,26.0,222.37,222.34,0.66]
[1758544838716,26.0,222.37,222.35,4.49741398]
[1758544839921,26.0,222.37,222.35,5.15741398]
[1758544840296,26.0,222.37,222.35,4.49741398]
[1758544840813,0.66,222.36,222.31,2.11966046]
[1758544841016,0.66,222.35,222.31,4.4982232]
[1758544841317,0.66,222.34,222.31,4.4982232]
[1758544842226,0.66,222.34,222.3,11.24565062]
[1758544843323,28.77966046,222.37,222.3,13.36531108]
[1758544843616,26.0,222.37,222.33,2.11966046]
[1758544843798,26.0,222.37,222.33,2.77966046]
[1758544844198,60.8,222.4,222.34,2.77966046]
[1758544844519,3.02514596,222.39,222.34,2.77966046]
[1758544845318,3.68514596,222.39,222.35,4.49741398]
[1758544845500,3.02514596,222.39,222.35,18.5206094]
[1758544845705,24.84124463,222.47,222.36,0.66]
[1758544845706,0.66,222.41,222.36,0.66]
[1758544845917,0.66,222.4,222.35,17.8606094]
[1758544846124,0.66,222.4,222.36,0.66]
[1758544846703,60.8,222.42,222.37,4.49700948]
[1758544846905,0.66,222.41,222.37,4.49700948]
[1758544847129,0.66,222.4,222.37,4.49700948]
[1758544847426,0.66,222.39,222.32,13.36449315]
[1758544847940,0.66,222.38,222.33,4.49781855]
[1758544848128,0.66,222.38,222.33,5.15781855]
[1758544848327,0.66,222.38,222.34,0.66]
[1758544848810,0.66,222.38,222.33,15.74236494]
[1758544849522,5.80481534,222.41,222.34,2.77966046]
[1758544850425,28.11966046,222.39,222.33,4.49781855]
[1758544850734,0.66,222.38,222.33,4.49781855]
[1758544851029,0.66,222.37,222.32,15.74288052]
[1758544851414,0.66,222.37,222.32,16.40288052]
[1758544852023,0.66,222.36,222.32,16.40288052]
[1758544852505,0.66,222.36,222.32,4.49802087]
[1758544852710,28.11966046,222.39,222.32,4.49802087]
[1758544852711,0.66,222.35,222.32,4.49802087]
[1758544852920,0.66,222.34,222.32,4.49802087]
[1758544853433,0.66,222.36,222.32,4.49802087]
[1758544853727,2.11966046,222.37,222.32,0.66]
[1758544853931,2.77966046,222.37,222.32,0.66]
[1758544854344,2.11966046,222.37,222.32,0.66]
[1758544854537,0.66,222.36,222.32,0.66]
[1758544854714,0.66,222.36,222.3,15.74448942]
[1758544855040,0.66,222.36,222.3,16.40448942]
[1758544855344,0.66,222.36,222.3,18.52414988]
[1758544857730,3.73550304,222.38,222.31,0.7]
[1758544858236,3.73550304,222.38,222.32,2.11966046]
[1758544858417,3.73550304,222.38,222.32,2.81966046]
[1758544858929,3.73550304,222.38,222.32,2.11966046]
[1758544859247,3.73550304,222.38,222.3,11.24606387]
[1758544859248,26.0,222.39,222.34,2.11966046]
[1758544859437,29.73822027,222.38,222.33,16.44236494]
[1758544859618,26.71,222.38,222.33,16.44236494]
[1758544860132,0.71,222.37,222.33,16.44236494]
[1758544860324,0.71,222.37,222.33,15.74236494]
[1758544860928,0.71,222.37,222.33,16.44236494]
[1758544861219,26.0,222.38,222.33,16.44236494]
[1758544861220,0.71,222.36,222.33,4.49781855]
[1758544861420,26.71,222.38,222.33,5.19781855]
[1758544862021,26.71,222.38,222.33,16.44236494]
[1758544862223,0.71,222.37,222.33,16.44236494]
[1758544863618,28.11966046,222.41,222.33,15.74236494]
[1758544863838,0.71,222.46,222.34,14.29559401]
[1758544864040,0.71,222.46,222.4,2.11966046]
[1758544864223,26.0,222.44,222.33,15.74236494]
[1758544864422,26.0,222.42,222.36,2.11966046]
[1758544864739,3.0297011,222.41,222.36,2.11966046]
[1758544865035,3.7397011,222.41,222.36,2.81966046]
[1758544865341,3.7397011,222.41,222.37,4.49700948]
[1758544866028,3.0297011,222.41,222.37,5.19700948]
[1758544866638,3.7397011,222.41,222.37,16.4395332]
[1758544866834,3.7397011,222.41,222.37,15.7395332]
[1758544867031,3.0297011,222.41,222.37,16.4395332]
[1758544867434,3.0297011,222.41,222.39,4.49660506]
[1758544868424,26.0,222.42,222.39,16.43811771]
[1758544868619,26.0,222.42,222.39,15.73811771]
[1758544868846,35.51,222.45,222.39,15.73811771]
[1758544868847,0.71,222.45,222.4,0.7]
[1758544869023,3.73791982,222.45,222.4,0.7]
[1758544869349,3.73791982,222.45,222.39,15.73811771]
[1758544869350,3.73791982,222.45,222.41,0.7]
[1758544869646,3.73791982,222.45,222.42,4.49599856]
[1758544870657,1.35692804,222.43,222.34,0.7]
[1758544870833,0.71,222.42,222.34,0.7]
[1758544871022,1.35692804,222.41,222.35,4.49741398]
[1758544871223,0.71,222.4,222.35,4.49741398]
[1758544871431,0.71,222.39,222.35,4.49741398]
[1758544871974,0.71,222.39,222.32,4.49802087]
[1758544871975,0.71,222.38,222.32,4.49802087]
[1758544872124,28.06692804,222.37,222.32,4.49802087]
[1758544872325,3.73787362,222.36,222.32,4.49802087]
[1758544872525,2.06692804,222.35,222.3,4.49825613]
[1758544872753,5.09480166,222.35,222.3,4.49825613]
[1758544872931,0.71,222.34,222.3,4.49825613]
[1758544873349,0.71,222.33,222.3,4.49825613]
[1758544873751,0.71,222.33,222.28,15.74590606]
[1758544874152,0.71,222.33,222.28,16.45590606]
[1758544874643,4.38480166,222.35,222.29,0.71]
[1758544874644,5.07480166,222.35,222.29,0.71]
[1758544875342,3.02787362,222.35,222.3,15.74448942]
[1758544875650,1.35692804,222.36,222.31,0.71]
[1758544875850,4.38480166,222.36,222.32,0.71]
[1758544876251,4.38480166,222.36,222.29,0.71]
[1758544876450,26.0,222.33,222.27,4.4990327]
[1758544876657,5.0768989,222.32,222.27,4.4990327]
[1758544876862,0.69,222.31,222.27,4.4990327]
[1758544877051,4.3868989,222.32,222.27,4.4990327]
[1758544877365,0.69,222.31,222.27,4.4990327]
[1758544877573,0.69,222.3,222.27,4.4990327]
[1758544877975,0.69,222.29,222.26,0.157]
[1758544878159,26.69,222.29,222.26,0.157]
[1758544878479,1.35692804,222.28,222.26,0.157]
[1758544878973,0.69,222.27,222.26,0.157]
[1758544879646,1.35692804,222.28,222.26,0.157]
[1758544880052,2.04692804,222.28,222.26,0.157]
[1758544881244,1.35692804,222.28,222.26,0.157]
[1758544881666,36.84692804,222.3,222.26,4.656228]
[1758544881862,0.69,222.29,222.26,4.656228]
[1758544882067,36.15692804,222.3,222.26,4.656228]
[1758544882254,36.84692804,222.3,222.26,4.656228]
[1758544882668,36.15692804,222.3,222.26,4.656228]
[1758544883054,0.69,222.29,222.26,4.656228]
[1758544883770,26.0,222.29,222.27,0.71]
[1758544884270,34.8,222.34,222.28,2.06692804]
[1758544884492,60.8,222.34,222.28,2.06692804]
[1758544884960,60.8,222.34,222.29,4.49862791]
[1758544885171,0.69,222.33,222.29,4.49862791]
[1758544885375,0.69,222.32,222.29,4.49862791]
[1758544886768,61.49,222.34,222.29,4.49862791]
[1758544887082,0.69,222.33,222.29,4.49862791]
[1758544887247,0.69,222.33,222.27,4.4990327]
[1758544887452,0.69,222.33,222.27,15.74661446]
[1758544888264,0.69,222.33,222.27,96.34661446]
[1758544888578,0.69,222.33,222.27,97.05661446]
[1758544889365,60.8,222.34,222.27,96.34661446]
[1758544889961,34.8,222.35,222.28,82.66692804]
[1758544890159,26.68,222.35,222.29,0.71]
[1758544890365,0.68,222.35,222.29,0.71]
[1758544890667,26.68,222.35,222.29,0.71]
[1758544890858,26.68,222.35,222.28,80.6]
[1758544891064,0.68,222.34,222.28,80.6]
[1758544891868,0.68,222.34,222.29,4.49862791]
[1758544892061,0.68,222.34,222.29,5.20862791]
[1758544892974,0.68,222.34,222.29,16.4551977]
[1758544893568,1.35692804,222.32,222.28,80.6]
[1758544893770,28.03692804,222.32,222.28,80.6]
[1758544894467,2.03692804,222.32,222.28,80.6]
[1758544894870,2.03692804,222.32,222.28,85.09873074]
[1758544895678,3.02623996,222.34,222.29,0.71]
[1758544895879,36.83692804,222.38,222.29,0.71]
[1758544896076,30.28623996,222.37,222.29,0.71]
[1758544896272,3.02623996,222.36,222.29,0.71]
[1758544896677,3.02623996,222.36,222.3,1.35692804]
[1758544896864,60.8,222.39,222.32,5.85494891]
[1758544897065,3.70574397,222.38,222.32,86.45494891]
[1758544897378,3.70574397,222.38,222.32,97.70000108]
[1758544897965,0.68,222.37,222.32,85.09802087]
[1758544898267,0.68,222.36,222.32,85.09802087]
[1758544898474,0.68,222.36,222.32,85.80802087]
[1758544898678,5.06267201,222.38,222.32,85.80802087]
[1758544904662,5.06267201,222.38,222.32,97.05307304]
[1758544905288,5.06267201,222.38,222.33,0.71]
[1758544905968,5.06267201,222.38,222.34,4.49761626]
[1758544906170,5.06267201,222.38,222.34,85.09761626]
[1758544907072,5.06267201,222.38,222.34,85.80761626]
[1758544909373,4.38267201,222.38,222.34,85.80761626]
[1758544910268,5.06267201,222.38,222.34,85.09761626]
[1758544910480,5.06267201,222.38,222.34,85.80761626]
[1758544912780,39.86267201,222.38,222.34,85.80761626]
[1758544912982,36.83692804,222.38,222.34,85.80761626]
[1758544913308,26.0,222.35,222.34,80.6]
[1758544913481,26.68,222.35,222.34,80.6]
[1758544914201,29.70867212,222.35,222.34,80.6]
[1758544914795,29.02867212,222.35,222.34,80.6]
[1758544914994,29.02867212,222.35,222.34,81.31]
[1758544915209,29.02867212,222.35,222.34,80.6]
[1758544917806,26.0,222.35,222.34,80.6]
[1758544918104,26.0,222.35,222.33,4.49763779]
[1758544918319,26.0,222.35,222.33,0.67]
[1758544919704,34.8,222.39,222.34,5.16761626]
[1758544919888,3.031209,222.38,222.35,0.67]
[1758544921092,3.031209,222.38,222.36,0.67]
[1758544921798,3.031209,222.38,222.34,11.91404065]
[1758544921992,3.031209,222.38,222.35,0.67]
[1758544922206,26.0,222.35,222.28,4.4988303]
[1758544922409,2.03692804,222.34,222.28,5.1688303]
[1758544922606,27.35692804,222.32,222.28,85.0988303]
[1758544922808,28.03692804,222.32,222.28,85.0988303]
[1758544923110,28.03692804,222.32,222.28,85.7688303]
[1758544923619,28.03692804,222.32,222.28,85.0988303]
[1758544924286,3.03209499,222.31,222.28,85.0988303]
[1758544924686,2.03692804,222.3,222.26,0.157]
[1758544924904,1.35692804,222.27,222.26,0.157]
[1758544925100,1.35692804,222.27,222.26,80.757]
[1758544927693,28.03692804,222.27,222.26,80.757]
[1758544927898,31.06971995,222.27,222.26,80.757]
[1758544928700,31.06971995,222.27,222.26,0.157]
[1758544932721,31.83650416,222.27,222.26,0.157]
[1758544932923,31.15650416,222.27,222.26,0.157]
[1758544933110,28.12371225,222.27,222.26,0.157]
[1758544933513,28.78371225,222.27,222.26,0.157]
[1758544934330,29.02825199,222.27,222.26,0.157]
[1758544934629,31.15196424,222.27,222.26,0.157]
[1758544935704,29.02825199,222.27,222.26,5.37623513]
[1758544935898,0.66,222.34,222.26,5.37623513]
[1758544936104,36.92371225,222.33,222.27,0.72]
[1758544936320,3.02757481,222.32,222.27,0.72]
[1758544936623,3.02757481,222.32,222.28,0.72]
[1758544936799,37.82757481,222.32,222.29,0.72]
[1758544936999,28.12371225,222.35,222.3,0.72]
[1758544937204,37.82709946,222.34,222.3,0.72]
[1758544937411,26.0,222.31,222.3,0.72]
[1758544937810,26.0,222.31,222.3,5.21842555]
[1758544938225,28.78371225,222.35,222.3,5.21842555]
[1758544938431,26.0,222.31,222.3,5.21842555]
[1758544939033,34.8,222.34,222.3,5.21842555]
[1758544939337,26.0,222.31,222.3,5.21842555]
[1758544940922,35.46,222.34,222.3,5.21842555]
[1758544941110,26.0,222.31,222.3,5.21842555]
[1758544941832,26.0,222.31,222.3,85.81842555]
[1758544942839,35.46,222.34,222.3,85.81842555]
[1758544943144,3.02714921,222.33,222.3,85.81842555]
[1758544943312,3.02714921,222.33,222.31,0.72]
[1758544943513,3.02714921,222.33,222.31,81.32]
[1758544943738,3.02714921,222.33,222.32,0.72]
[1758544944045,3.02714921,222.34,222.32,0.72]
[1758544944520,3.02714921,222.34,222.33,0.72]
[1758544944841,3.02714921,222.34,222.31,83.44371225]
[1758544945042,3.02714921,222.34,222.32,4.49802087]
[1758544945637,26.0,222.32,222.31,80.6]
[1758544945931,31.81086146,222.32,222.31,80.6]
[1758544946714,31.81086146,222.32,222.31,85.0982232]
[1758544946715,29.02714921,222.32,222.31,85.0982232]
[1758544948034,3.02714921,222.32,222.31,85.0982232]
[1758544948240,3.02714921,222.33,222.31,85.0982232]
[1758544948544,3.70714921,222.33,222.31,80.6]
[1758544948841,26.0,222.35,222.32,0.71]
[1758544949046,3.02730719,222.34,222.32,0.71]
[1758544949242,3.02730719,222.35,222.31,85.09821088]
[1758544949446,3.02730719,222.35,222.33,0.71]
[1758544949640,3.02730719,222.35,222.31,96.34376888]
[1758544949942,26.0,222.35,222.34,0.71]
[1758544950158,26.0,222.35,222.34,5.20761626]